[Event "*** Titled Tuesday 3|2 Blitz"]
[Site "Chess.com"]
[Date "2016.06.07"]
[Round "5"]
[White "Generalas"]
[Black "FabianEnglert"]
[Result "0-1"]
[WhiteElo "2219"]
[BlackElo "2368"]
[TimeControl "180+2"]
[EndTime "17:59:02 PDT"]
[Termination "FabianEnglert won by resignation"]

1. e4 {[%clk 0:03:01.9]} 1... c5 {[%clk 0:03:01.3]} 2. c3 {[%clk 0:03:02.4]}
2... Nf6 {[%clk 0:03:01.9]} 3. e5 {[%clk 0:03:02.1]} 3... Nd5 {[%clk 0:03:03.5]}
4. d4 {[%clk 0:03:03]} 4... cxd4 {[%clk 0:03:04.6]} 5. cxd4 {[%clk 0:03:04.2]}
5... g6 {[%clk 0:03:05.6]} 6. Bc4 {[%clk 0:02:58.8]} 6... Nb6 {[%clk 0:03:06.5]}
7. Bb3 {[%clk 0:02:58.7]} 7... Bg7 {[%clk 0:03:08]} 8. f4 {[%clk 0:02:54.9]}
8... d6 {[%clk 0:03:05.4]} 9. Nf3 {[%clk 0:02:55.8]} 9... dxe5 {[%clk
0:03:02.1]} 10. dxe5 {[%clk 0:02:56.3]} 10... Qxd1+ {[%clk 0:03:01.9]} 11. Bxd1
{[%clk 0:02:58.2]} 11... Nc6 {[%clk 0:03:02]} 12. Nc3 {[%clk 0:02:55.3]} 12...
O-O {[%clk 0:02:59.3]} 13. O-O {[%clk 0:02:46.7]} 13... Be6 {[%clk 0:02:55.4]}
14. b3 {[%clk 0:02:44.2]} 14... f6 {[%clk 0:02:55.2]} 15. Re1 {[%clk 0:02:32.2]}
15... fxe5 {[%clk 0:02:52.6]} 16. fxe5 {[%clk 0:02:31.8]} 16... Rac8 {[%clk
0:02:35.8]} 17. Bb2 {[%clk 0:02:26]} 17... Nb4 {[%clk 0:02:36.8]} 18. Nd4 {[%clk
0:00:48.6]} 18... Bd7 {[%clk 0:02:21.5]} 19. Re2 {[%clk 0:00:18.4]} 19... Nd3
{[%clk 0:02:14.6]} 20. Ncb5 {[%clk 0:00:12.4]} 20... Nxb2 {[%clk 0:01:51.4]} 21.
Rxb2 {[%clk 0:00:14.3]} 21... Bxb5 {[%clk 0:01:53]} 22. Nxb5 {[%clk 0:00:13.4]}
22... Bxe5 {[%clk 0:01:54.7]} 23. Rab1 {[%clk 0:00:11.5]} 23... Bxb2 {[%clk
0:01:21.4]} 24. Rxb2 {[%clk 0:00:13.4]} 24... a6 {[%clk 0:01:23.1]} 25. Na3
{[%clk 0:00:12.9]} 25... Rc1 {[%clk 0:01:01.8]} 26. Rd2 {[%clk 0:00:13]} 26...
Rf6 {[%clk 0:01:03.5]} 27. Nc2 {[%clk 0:00:06.2]} 27... Rd6 {[%clk 0:01:00.6]}
28. Rxd6 {[%clk 0:00:07]} 28... exd6 {[%clk 0:01:00.8]} 29. Ne3 {[%clk
0:00:08.9]} 29... Nd5 {[%clk 0:00:58.8]} 0-1

[Event "*** Titled Tuesday 3|2 Blitz"]
[Site "Chess.com"]
[Date "2016.06.07"]
[Round "5"]
[White "champ1000"]
[Black "1stSecond"]
[Result "0-1"]
[WhiteElo "2097"]
[BlackElo "2603"]
[TimeControl "180+2"]
[EndTime "17:59:34 PDT"]
[Termination "1stSecond won by resignation"]

1. e4 {[%clk 0:03:01.9]} 1... c5 {[%clk 0:03:01.3]} 2. Nf3 {[%clk 0:03:02.2]}
2... e6 {[%clk 0:03:02.8]} 3. d4 {[%clk 0:03:03.4]} 3... cxd4 {[%clk 0:03:04.7]}
4. Nxd4 {[%clk 0:03:05.3]} 4... Nc6 {[%clk 0:03:06.3]} 5. Nc3 {[%clk 0:03:04.3]}
5... Qc7 {[%clk 0:03:07.8]} 6. Nxc6 {[%clk 0:02:59.4]} 6... bxc6 {[%clk
0:03:06.1]} 7. Bd3 {[%clk 0:03:00.5]} 7... Nf6 {[%clk 0:03:07.3]} 8. O-O {[%clk
0:03:01.4]} 8... e5 {[%clk 0:03:08.6]} 9. f4 {[%clk 0:02:59.2]} 9... Bc5+ {[%clk
0:03:10]} 10. Kh1 {[%clk 0:02:59.8]} 10... d6 {[%clk 0:03:11.6]} 11. fxe5 {[%clk
0:02:59.1]} 11... dxe5 {[%clk 0:03:13.5]} 12. Bg5 {[%clk 0:02:59.8]} 12... Ng4
{[%clk 0:03:12.5]} 13. Qf3 {[%clk 0:02:54.6]} 13... Be6 {[%clk 0:02:37]} 14. h3
{[%clk 0:02:42.6]} 14... h5 {[%clk 0:02:35.9]} 15. Rae1 {[%clk 0:02:04.6]} 15...
a5 {[%clk 0:02:35]} 16. Nd1 {[%clk 0:01:59.6]} 16... Qb6 {[%clk 0:02:29.4]} 17.
b3 {[%clk 0:01:58.1]} 17... f6 {[%clk 0:02:15.9]} 18. Be3 {[%clk 0:01:50.3]}
18... Nxe3 {[%clk 0:02:02.7]} 19. Nxe3 {[%clk 0:01:52.2]} 19... Bxe3 {[%clk
0:02:04.3]} 20. Rxe3 {[%clk 0:01:51.6]} 20... h4 {[%clk 0:01:57.7]} 21. Qe2
{[%clk 0:01:33.6]} 21... Rd8 {[%clk 0:01:56.2]} 22. Ref3 {[%clk 0:01:26.8]}
22... Qc5 {[%clk 0:01:49.2]} 23. Rd1 {[%clk 0:01:04.3]} 23... Ke7 {[%clk
0:01:50.3]} 24. Rff1 {[%clk 0:01:02.2]} 24... Rh6 {[%clk 0:01:46.8]} 25. Qf2
{[%clk 0:00:56.5]} 25... Qxf2 {[%clk 0:01:47.1]} 26. Rxf2 {[%clk 0:00:58.4]}
26... Rg6 {[%clk 0:01:47.8]} 27. Rfd2 {[%clk 0:00:58.2]} 27... Rg3 {[%clk
0:01:47.8]} 28. Kh2 {[%clk 0:00:30.8]} 28... Rd4 {[%clk 0:01:45.7]} 29. Rf2
{[%clk 0:00:20.2]} 29... Kd7 {[%clk 0:01:43.9]} 30. Rf3 {[%clk 0:00:21.1]} 30...
Rxf3 {[%clk 0:01:42.3]} 31. gxf3 {[%clk 0:00:23]} 31... g5 {[%clk 0:01:43.8]}
32. Be2 {[%clk 0:00:24.4]} 32... Kd6 {[%clk 0:01:35.6]} 33. c3 {[%clk
0:00:24.6]} 33... Rxd1 {[%clk 0:01:33.2]} 34. Bxd1 {[%clk 0:00:26.5]} 34... Kc5
{[%clk 0:01:30.8]} 35. Be2 {[%clk 0:00:23.1]} 35... Kb6 {[%clk 0:01:28.6]} 36.
Bf1 {[%clk 0:00:20.3]} 36... a4 {[%clk 0:01:29.6]} 37. c4 {[%clk 0:00:19.1]}
37... Ka5 {[%clk 0:01:26.3]} 38. Bd3 {[%clk 0:00:19.5]} 38... a3 {[%clk
0:01:25.8]} 39. Bc2 {[%clk 0:00:18.8]} 39... Kb4 {[%clk 0:01:26.2]} 40. Bd1
{[%clk 0:00:19.3]} 40... c5 {[%clk 0:01:26.7]} 41. Kg2 {[%clk 0:00:17.9]} 41...
Kc3 {[%clk 0:01:27.7]} 42. Be2 {[%clk 0:00:18.4]} 42... Kb2 {[%clk 0:01:27.8]}
43. b4 {[%clk 0:00:19.9]} 43... cxb4 {[%clk 0:01:29.7]} 44. c5 {[%clk
0:00:21.8]} 44... Kxa2 {[%clk 0:01:30.1]} 45. c6 {[%clk 0:00:23.3]} 45... Kb2
{[%clk 0:01:31.3]} 46. c7 {[%clk 0:00:23.4]} 46... a2 {[%clk 0:01:32.7]} 47. Bc4
{[%clk 0:00:23.5]} 47... Bc8 {[%clk 0:01:33.4]} 48. Bxa2 {[%clk 0:00:24]} 48...
Kxa2 {[%clk 0:01:34.7]} 49. f4 {[%clk 0:00:25.9]} 49... gxf4 {[%clk 0:01:35.4]}
0-1

[Event "*** Titled Tuesday 3|2 Blitz"]
[Site "Chess.com"]
[Date "2016.06.07"]
[Round "5"]
[White "Danhy"]
[Black "Cruel_Yaro"]
[Result "1-0"]
[WhiteElo "2485"]
[BlackElo "2538"]
[TimeControl "180+2"]
[EndTime "17:59:45 PDT"]
[Termination "Danhy won by resignation"]

1. e4 {[%clk 0:02:59.9]} 1... c5 {[%clk 0:03:00.5]} 2. Nf3 {[%clk 0:02:59.6]}
2... e6 {[%clk 0:03:01.7]} 3. d4 {[%clk 0:03:00.1]} 3... cxd4 {[%clk 0:03:03.6]}
4. Nxd4 {[%clk 0:03:00.5]} 4... Nc6 {[%clk 0:03:05]} 5. Nc3 {[%clk 0:03:00.5]}
5... Qc7 {[%clk 0:03:06]} 6. Be3 {[%clk 0:02:55.4]} 6... Nf6 {[%clk 0:03:06.5]}
7. Be2 {[%clk 0:02:52.6]} 7... a6 {[%clk 0:03:06.3]} 8. O-O {[%clk 0:02:51.4]}
8... Be7 {[%clk 0:03:07.8]} 9. f4 {[%clk 0:02:50.4]} 9... d6 {[%clk 0:03:09.2]}
10. Qe1 {[%clk 0:02:50.3]} 10... Nxd4 {[%clk 0:03:07]} 11. Bxd4 {[%clk
0:02:50.5]} 11... b5 {[%clk 0:03:08.5]} 12. a3 {[%clk 0:02:46.2]} 12... O-O
{[%clk 0:03:08.5]} 13. Qg3 {[%clk 0:02:38.6]} 13... Bb7 {[%clk 0:03:09.4]} 14.
Rad1 {[%clk 0:02:36.2]} 14... Rad8 {[%clk 0:03:10]} 15. Bf3 {[%clk 0:02:34.9]}
15... Rd7 {[%clk 0:03:10.6]} 16. Kh1 {[%clk 0:02:29.8]} 16... Re8 {[%clk
0:03:11.2]} 17. e5 {[%clk 0:02:28.4]} 17... dxe5 {[%clk 0:03:08.1]} 18. fxe5
{[%clk 0:02:27.3]} 18... Nd5 {[%clk 0:02:57.5]} 19. Ne4 {[%clk 0:02:23.8]} 19...
Bf8 {[%clk 0:02:47.8]} 20. c3 {[%clk 0:02:09.6]} 20... g6 {[%clk 0:01:58.4]} 21.
Qf2 {[%clk 0:01:59.7]} 21... Bg7 {[%clk 0:01:55.2]} 22. Nd6 {[%clk 0:01:55.9]}
22... Rf8 {[%clk 0:01:55.3]} 23. Rde1 {[%clk 0:01:49]} 23... Ba8 {[%clk
0:01:52.2]} 24. Ne4 {[%clk 0:01:43.4]} 24... a5 {[%clk 0:01:45.3]} 25. Nf6+
{[%clk 0:01:40.9]} 25... Bxf6 {[%clk 0:01:38.7]} 26. exf6 {[%clk 0:01:42.8]}
26... Rc8 {[%clk 0:01:33.9]} 27. Qh4 {[%clk 0:01:41.1]} 27... Qd8 {[%clk
0:01:34.2]} 28. Be2 {[%clk 0:01:39]} 28... Bc6 {[%clk 0:01:32.7]} 29. Rf3 {[%clk
0:01:34.9]} 29... Qf8 {[%clk 0:01:02.5]} 30. Rff1 {[%clk 0:01:28.9]} 30... Rcd8
{[%clk 0:00:53.3]} 31. Bd3 {[%clk 0:01:26.9]} 31... b4 {[%clk 0:00:49.5]} 32.
Be4 {[%clk 0:01:05.5]} 32... bxc3 {[%clk 0:00:43.8]} 33. bxc3 {[%clk 0:01:03.9]}
33... Ba8 {[%clk 0:00:27.6]} 34. Bxg6 {[%clk 0:00:59.4]} 34... fxg6 {[%clk
0:00:21.2]} 35. f7+ {[%clk 0:00:58]} 35... Rxf7 {[%clk 0:00:20.1]} 36. Rxf7
{[%clk 0:00:59.2]} 36... Qxf7 {[%clk 0:00:17.9]} 37. Qxd8+ {[%clk 0:00:58.9]}
37... Qf8 {[%clk 0:00:19]} 38. Qxf8+ {[%clk 0:00:53.6]} 38... Kxf8 {[%clk
0:00:20.9]} 39. Rxe6 {[%clk 0:00:54.3]} 1-0

[Event "*** Titled Tuesday 3|2 Blitz"]
[Site "Chess.com"]
[Date "2016.06.07"]
[Round "5"]
[White "Abrito99"]
[Black "Viaje"]
[Result "1-0"]
[WhiteElo "2340"]
[BlackElo "2130"]
[TimeControl "180+2"]
[EndTime "17:59:56 PDT"]
[Termination "Abrito99 won on time"]

1. e4 {[%clk 0:03:01.9]} 1... c5 {[%clk 0:03:00.7]} 2. d4 {[%clk 0:03:02.8]}
2... cxd4 {[%clk 0:03:01.1]} 3. c3 {[%clk 0:03:04.7]} 3... Nf6 {[%clk
0:03:02.4]} 4. e5 {[%clk 0:03:05.8]} 4... Nd5 {[%clk 0:03:03.9]} 5. Nf3 {[%clk
0:03:07.7]} 5... e6 {[%clk 0:03:04.4]} 6. cxd4 {[%clk 0:03:08.6]} 6... b6 {[%clk
0:03:05.2]} 7. Bd3 {[%clk 0:03:09.4]} 7... Bb4+ {[%clk 0:03:01.3]} 8. Bd2 {[%clk
0:03:05.2]} 8... Bxd2+ {[%clk 0:03:02.2]} 9. Qxd2 {[%clk 0:03:03.1]} 9... Ba6
{[%clk 0:03:03.1]} 10. O-O {[%clk 0:02:54.6]} 10... O-O {[%clk 0:02:53.6]} 11.
Bxa6 {[%clk 0:02:51.4]} 11... Nxa6 {[%clk 0:02:53]} 12. Qe2 {[%clk 0:02:53]}
12... Nac7 {[%clk 0:02:52.2]} 13. Nbd2 {[%clk 0:02:54.5]} 13... d6 {[%clk
0:02:52.2]} 14. Nc4 {[%clk 0:02:50.8]} 14... dxe5 {[%clk 0:02:51.4]} 15. dxe5
{[%clk 0:02:52.7]} 15... Qe7 {[%clk 0:02:49.8]} 16. Nd6 {[%clk 0:02:52.1]} 16...
Ne8 {[%clk 0:02:49.9]} 17. Ne4 {[%clk 0:02:47.5]} 17... f5 {[%clk 0:02:44]} 18.
exf6 {[%clk 0:02:48.6]} 18... Nexf6 {[%clk 0:02:44.4]} 19. Neg5 {[%clk
0:02:48.7]} 19... Rae8 {[%clk 0:02:41.8]} 20. Rfe1 {[%clk 0:02:49.7]} 20... Nf4
{[%clk 0:02:41.7]} 21. Qc4 {[%clk 0:02:46.3]} 21... N6d5 {[%clk 0:02:40]} 22.
Rad1 {[%clk 0:02:41.7]} 22... Qf6 {[%clk 0:02:36.4]} 23. Ne4 {[%clk 0:02:41]}
23... Qg6 {[%clk 0:02:29.1]} 24. Ng3 {[%clk 0:02:31.4]} 24... Rc8 {[%clk
0:02:09.5]} 25. Qb3 {[%clk 0:02:26.5]} 25... h5 {[%clk 0:02:05.9]} 26. Re5
{[%clk 0:02:21.6]} 26... Rf6 {[%clk 0:01:36.4]} 27. Rg5 {[%clk 0:02:15.5]} 27...
Qe8 {[%clk 0:01:34.6]} 28. Ne4 {[%clk 0:02:13.6]} 28... Rg6 {[%clk 0:01:33.6]}
29. Nd6 {[%clk 0:02:12.8]} 29... Rxg5 {[%clk 0:01:20.2]} 30. Nxg5 {[%clk
0:02:01.5]} 30... Qg6 {[%clk 0:01:10.9]} 31. Nxc8 {[%clk 0:01:47.7]} 31... Qxg5
{[%clk 0:01:10.8]} 32. Qf3 {[%clk 0:01:48.5]} 32... a6 {[%clk 0:00:42.1]} 33.
Nd6 {[%clk 0:01:37.8]} 33... Qe5 {[%clk 0:00:37]} 34. Nc4 {[%clk 0:01:32.7]}
34... Qc7 {[%clk 0:00:37.6]} 35. Ne3 {[%clk 0:01:28.5]} 35... Nf6 {[%clk
0:00:24.2]} 36. h4 {[%clk 0:00:55]} 36... e5 {[%clk 0:00:24]} 37. g3 {[%clk
0:00:53.3]} 37... Nh3+ {[%clk 0:00:07.1]} 38. Kg2 {[%clk 0:00:54]} 38... e4
{[%clk 0:00:08]} 39. Qf5 {[%clk 0:00:46.8]} 1-0

[Event "*** Titled Tuesday 3|2 Blitz"]
[Site "Chess.com"]
[Date "2016.06.07"]
[Round "5"]
[White "Keaton87"]
[Black "AlexanderL"]
[Result "1-0"]
[WhiteElo "2471"]
[BlackElo "2570"]
[TimeControl "180+2"]
[EndTime "18:00:01 PDT"]
[Termination "Keaton87 won by resignation"]

1. e4 {[%clk 0:03:01.9]} 1... e6 {[%clk 0:03:00.7]} 2. d4 {[%clk 0:02:59.7]}
2... d5 {[%clk 0:03:01.9]} 3. Nd2 {[%clk 0:03:00.8]} 3... c5 {[%clk 0:03:02.1]}
4. Ngf3 {[%clk 0:03:00.9]} 4... Nf6 {[%clk 0:03:02.2]} 5. e5 {[%clk 0:02:57.1]}
5... Nfd7 {[%clk 0:03:03]} 6. c3 {[%clk 0:02:58.2]} 6... Nc6 {[%clk 0:03:03.4]}
7. Bd3 {[%clk 0:02:59.3]} 7... Qb6 {[%clk 0:02:59.3]} 8. O-O {[%clk 0:03:00.1]}
8... cxd4 {[%clk 0:03:00.4]} 9. cxd4 {[%clk 0:03:02]} 9... Nxd4 {[%clk
0:03:01.7]} 10. Nxd4 {[%clk 0:03:03.3]} 10... Qxd4 {[%clk 0:03:03]} 11. Nf3
{[%clk 0:03:04.5]} 11... Qb6 {[%clk 0:03:04.2]} 12. Qa4 {[%clk 0:03:05.6]} 12...
Qb4 {[%clk 0:03:00.8]} 13. Qc2 {[%clk 0:03:06.7]} 13... Nc5 {[%clk 0:02:57.8]}
14. Be3 {[%clk 0:03:01.2]} 14... Nxd3 {[%clk 0:02:57.2]} 15. Qxd3 {[%clk
0:03:03.1]} 15... Bd7 {[%clk 0:02:57.7]} 16. Rfc1 {[%clk 0:02:56.9]} 16... Be7
{[%clk 0:02:46.2]} 17. a3 {[%clk 0:02:53.3]} 17... Qb5 {[%clk 0:02:45.9]} 18.
Qd2 {[%clk 0:02:50.1]} 18... O-O {[%clk 0:02:18]} 19. Rc7 {[%clk 0:02:50.3]}
19... Rfd8 {[%clk 0:02:14.7]} 20. Rac1 {[%clk 0:02:46.6]} 20... Rac8 {[%clk
0:02:05]} 21. Nd4 {[%clk 0:02:23.6]} 21... Qa6 {[%clk 0:02:03.8]} 22. h3 {[%clk
0:02:08.1]} 22... h6 {[%clk 0:02:00.1]} 23. R1c3 {[%clk 0:01:42.6]} 23... Bf8
{[%clk 0:01:55.2]} 24. Rxd7 {[%clk 0:01:30.1]} 24... Rxd7 {[%clk 0:01:41.7]} 25.
Rxc8 {[%clk 0:01:30.7]} 25... b6 {[%clk 0:01:42.9]} 26. Rb8 {[%clk 0:01:18.2]}
26... Qc4 {[%clk 0:01:34.4]} 27. Qb4 {[%clk 0:01:13.6]} 27... Qxb4 {[%clk
0:01:29.5]} 28. axb4 {[%clk 0:01:15.5]} 28... g5 {[%clk 0:01:18.8]} 29. Nc6
{[%clk 0:01:05.2]} 29... Kg7 {[%clk 0:01:19.7]} 30. b5 {[%clk 0:01:03.8]} 30...
Bc5 {[%clk 0:01:18.8]} 31. b4 {[%clk 0:01:02.6]} 31... d4 {[%clk 0:01:13]} 32.
Bd2 {[%clk 0:00:48.5]} 32... Bf8 {[%clk 0:01:13.8]} 33. Ra8 {[%clk 0:00:49.5]}
33... Rd5 {[%clk 0:01:13.6]} 34. Rxa7 {[%clk 0:00:47.5]} 34... Rxb5 {[%clk
0:01:13.1]} 35. Kf1 {[%clk 0:00:43.9]} 35... d3 {[%clk 0:01:13.3]} 36. f3 {[%clk
0:00:43.1]} 36... Rd5 {[%clk 0:01:13.7]} 37. Kf2 {[%clk 0:00:42.6]} 37... Kg6
{[%clk 0:01:11.4]} 38. g4 {[%clk 0:00:42.2]} 38... f6 {[%clk 0:01:09.9]} 39. Ke3
{[%clk 0:00:38.9]} 39... f5 {[%clk 0:01:05.5]} 40. Ra8 {[%clk 0:00:29.8]} 40...
Kf7 {[%clk 0:01:02]} 41. Rd8 {[%clk 0:00:30.5]} 41... Rxd8 {[%clk 0:00:49.3]}
42. Nxd8+ {[%clk 0:00:32.4]} 42... Ke7 {[%clk 0:00:51]} 43. Nc6+ {[%clk
0:00:33.6]} 43... Kd7 {[%clk 0:00:52.3]} 44. b5 {[%clk 0:00:33.3]} 44... Bc5+
{[%clk 0:00:53.4]} 45. Kxd3 {[%clk 0:00:34.3]} 45... Bf2 {[%clk 0:00:53.9]} 46.
Be3 {[%clk 0:00:33.5]} 46... Bxe3 {[%clk 0:00:55]} 47. Kxe3 {[%clk 0:00:35.4]}
47... f4+ {[%clk 0:00:55.6]} 48. Ke4 {[%clk 0:00:35.2]} 48... Kc7 {[%clk
0:00:57]} 49. Nd4 {[%clk 0:00:35.6]} 49... Kd7 {[%clk 0:00:58.5]} 50. Nc2 {[%clk
0:00:36.8]} 50... Ke7 {[%clk 0:00:59.1]} 51. Ne1 {[%clk 0:00:37]} 51... Kf7
{[%clk 0:00:59.6]} 52. Nd3 {[%clk 0:00:38.5]} 52... Kg6 {[%clk 0:00:59.9]} 53.
Nb2 {[%clk 0:00:39.2]} 1-0

[Event "*** Titled Tuesday 3|2 Blitz"]
[Site "Chess.com"]
[Date "2016.06.07"]
[Round "5"]
[White "AleksandrKholin"]
[Black "Kawhi_Leonard2"]
[Result "1-0"]
[WhiteElo "2121"]
[BlackElo "2038"]
[TimeControl "180+2"]
[EndTime "18:00:01 PDT"]
[Termination "AleksandrKholin won by resignation"]

1. d4 {[%clk 0:03:01.9]} 1... Nf6 {[%clk 0:03:00.1]} 2. c4 {[%clk 0:03:02.5]}
2... e6 {[%clk 0:03:01.6]} 3. Nf3 {[%clk 0:03:03.2]} 3... d5 {[%clk 0:03:01.7]}
4. g3 {[%clk 0:03:04.1]} 4... Be7 {[%clk 0:03:01.4]} 5. Bg2 {[%clk 0:03:05.4]}
5... O-O {[%clk 0:03:02.3]} 6. O-O {[%clk 0:03:07]} 6... dxc4 {[%clk 0:03:02.3]}
7. Qc2 {[%clk 0:03:07.6]} 7... a6 {[%clk 0:03:02.4]} 8. Qxc4 {[%clk 0:03:08.2]}
8... b5 {[%clk 0:03:03.2]} 9. Qc2 {[%clk 0:03:09.3]} 9... Bb7 {[%clk 0:03:04.2]}
10. Nbd2 {[%clk 0:03:09.8]} 10... Nbd7 {[%clk 0:03:01.2]} 11. Nb3 {[%clk
0:03:10.3]} 11... Rc8 {[%clk 0:02:58]} 12. Na5 {[%clk 0:03:04.3]} 12... Be4
{[%clk 0:02:56.9]} 13. Qd2 {[%clk 0:02:49.2]} 13... c5 {[%clk 0:02:57.1]} 14.
dxc5 {[%clk 0:02:45.4]} 14... Bxc5 {[%clk 0:02:48.2]} 15. Nb3 {[%clk 0:02:40.9]}
15... Bb6 {[%clk 0:02:45.6]} 16. Qd1 {[%clk 0:02:32.9]} 16... h6 {[%clk
0:02:29.1]} 17. Bf4 {[%clk 0:02:30.7]} 17... Rc2 {[%clk 0:02:26]} 18. Bd6 {[%clk
0:02:02.9]} 18... Re8 {[%clk 0:02:24.1]} 19. Ne5 {[%clk 0:01:51.1]} 19... Rxb2
{[%clk 0:02:05.9]} 20. Bxe4 {[%clk 0:01:08.8]} 20... Nxe4 {[%clk 0:02:05.2]} 21.
Nc6 {[%clk 0:01:09.6]} 21... Qf6 {[%clk 0:01:49.4]} 22. Ba3 {[%clk 0:01:06.6]}
22... Nb8 {[%clk 0:00:18.4]} 23. Bxb2 {[%clk 0:01:01]} 23... Qxb2 {[%clk
0:00:17.5]} 24. Nxb8 {[%clk 0:01:01.9]} 24... Rxb8 {[%clk 0:00:16.3]} 25. Qd3
{[%clk 0:00:44.3]} 25... Nxf2 {[%clk 0:00:12]} 26. Rxf2 {[%clk 0:00:43.6]} 26...
Bxf2+ {[%clk 0:00:07.6]} 27. Kxf2 {[%clk 0:00:44.1]} 27... a5 {[%clk 0:00:05.9]}
28. Rc1 {[%clk 0:00:30.6]} 28... Qf6+ {[%clk 0:00:05.9]} 29. Qf3 {[%clk
0:00:28.2]} 29... a4 {[%clk 0:00:07.4]} 30. Qxf6 {[%clk 0:00:27.4]} 30... gxf6
{[%clk 0:00:08.4]} 31. Nd4 {[%clk 0:00:29]} 31... b4 {[%clk 0:00:08.7]} 32. Rb1
{[%clk 0:00:30]} 32... Rb6 {[%clk 0:00:06.5]} 33. Nc2 {[%clk 0:00:30.2]} 33...
b3 {[%clk 0:00:06.3]} 34. axb3 {[%clk 0:00:31.5]} 34... axb3 {[%clk 0:00:07.3]}
35. Nd4 {[%clk 0:00:32.6]} 35... b2 {[%clk 0:00:08.3]} 36. Ke3 {[%clk 0:00:34]}
36... f5 {[%clk 0:00:09.1]} 37. Kd2 {[%clk 0:00:35]} 37... Kg7 {[%clk
0:00:10.1]} 38. Kc3 {[%clk 0:00:36.3]} 38... Kf6 {[%clk 0:00:10.8]} 39. Rxb2
{[%clk 0:00:37.5]} 1-0

[Event "*** Titled Tuesday 3|2 Blitz"]
[Site "Chess.com"]
[Date "2016.06.07"]
[Round "5"]
[White "AllStarShark"]
[Black "aspired"]
[Result "0-1"]
[WhiteElo "2142"]
[BlackElo "2488"]
[TimeControl "180+2"]
[EndTime "18:00:10 PDT"]
[Termination "aspired won by resignation"]

1. c4 {[%clk 0:03:01]} 1... c5 {[%clk 0:03:00]} 2. g3 {[%clk 0:03:00.1]} 2...
Nc6 {[%clk 0:03:00.2]} 3. Bg2 {[%clk 0:03:01.2]} 3... g6 {[%clk 0:03:01.6]} 4.
Nc3 {[%clk 0:03:01.7]} 4... Bg7 {[%clk 0:03:03]} 5. d3 {[%clk 0:03:01.6]} 5...
Nf6 {[%clk 0:03:04.9]} 6. Nf3 {[%clk 0:02:59.6]} 6... O-O {[%clk 0:03:05.8]} 7.
O-O {[%clk 0:03:00.7]} 7... d5 {[%clk 0:03:06.8]} 8. cxd5 {[%clk 0:03:00]} 8...
Nxd5 {[%clk 0:03:08.7]} 9. Nxd5 {[%clk 0:02:54.8]} 9... Qxd5 {[%clk 0:03:10.6]}
10. a3 {[%clk 0:02:52.3]} 10... b6 {[%clk 0:03:04.5]} 11. Rb1 {[%clk 0:02:52.6]}
11... Bb7 {[%clk 0:03:04]} 12. b4 {[%clk 0:02:47.8]} 12... Rac8 {[%clk
0:03:01.6]} 13. Bd2 {[%clk 0:02:43.3]} 13... Rfd8 {[%clk 0:02:56.8]} 14. b5
{[%clk 0:02:33.3]} 14... Nd4 {[%clk 0:02:54.9]} 15. Be3 {[%clk 0:02:25]} 15...
Nxf3+ {[%clk 0:02:52.4]} 16. Bxf3 {[%clk 0:02:25.3]} 16... Qd7 {[%clk
0:02:54.3]} 17. Bxb7 {[%clk 0:02:22.9]} 17... Qxb7 {[%clk 0:02:56.2]} 18. a4
{[%clk 0:02:22.6]} 18... h5 {[%clk 0:02:49.4]} 19. h4 {[%clk 0:02:12.2]} 19...
c4 {[%clk 0:02:49.6]} 20. Rc1 {[%clk 0:01:58.3]} 20... cxd3 {[%clk 0:02:48.5]}
21. Rxc8 {[%clk 0:01:55.9]} 21... Qxc8 {[%clk 0:02:50.4]} 22. exd3 {[%clk
0:01:57]} 22... Qd7 {[%clk 0:02:39.8]} 23. d4 {[%clk 0:01:43.5]} 23... Bxd4
{[%clk 0:02:39.9]} 24. Bxd4 {[%clk 0:01:45.4]} 24... Qxd4 {[%clk 0:02:41.3]} 25.
Qc2 {[%clk 0:01:46.3]} 25... Rd7 {[%clk 0:02:23.4]} 26. Rc1 {[%clk 0:01:18.5]}
26... Kg7 {[%clk 0:02:20.4]} 27. Kg2 {[%clk 0:01:15.7]} 27... e5 {[%clk
0:02:18.8]} 28. Re1 {[%clk 0:01:11.9]} 28... Qd5+ {[%clk 0:02:17.7]} 29. Kg1
{[%clk 0:01:10.8]} 29... Qd4 {[%clk 0:02:17.1]} 30. Kg2 {[%clk 0:01:07.4]} 30...
Qd6 {[%clk 0:02:08.4]} 31. Qe4 {[%clk 0:01:06]} 31... Re7 {[%clk 0:02:04.9]} 32.
Re3 {[%clk 0:01:03.2]} 32... f5 {[%clk 0:02:01.3]} 33. Qc2 {[%clk 0:01:01.1]}
33... e4 {[%clk 0:02:01.9]} 34. Re2 {[%clk 0:00:59]} 34... Rd7 {[%clk
0:02:00.4]} 35. Qc3+ {[%clk 0:00:51.7]} 35... Qd4 {[%clk 0:01:56.9]} 36. Qc6
{[%clk 0:00:51.2]} 36... Qd5 {[%clk 0:01:55.3]} 37. Qc3+ {[%clk 0:00:37.3]}
37... Kh7 {[%clk 0:01:55.4]} 38. Re3 {[%clk 0:00:37.3]} 38... Qd4 {[%clk
0:01:54.6]} 39. Qc6 {[%clk 0:00:36.9]} 39... Rf7 {[%clk 0:01:52.8]} 40. Qe6
{[%clk 0:00:32.2]} 40... Kg7 {[%clk 0:01:52.4]} 41. Qb3 {[%clk 0:00:29.2]} 41...
f4 {[%clk 0:01:50.6]} 42. gxf4 {[%clk 0:00:29.1]} 42... Rxf4 {[%clk 0:01:52.5]}
43. Kg3 {[%clk 0:00:28.4]} 43... Rg4+ {[%clk 0:01:48.5]} 44. Kh3 {[%clk
0:00:29.1]} 44... Qf6 {[%clk 0:01:49]} 45. Qc3 {[%clk 0:00:15.9]} 45... Rxh4+
{[%clk 0:01:49.8]} 46. Kg3 {[%clk 0:00:16.3]} 46... Rg4+ {[%clk 0:01:50.5]} 47.
Kh3 {[%clk 0:00:17.1]} 47... Rf4 {[%clk 0:01:51.4]} 48. Qxf6+ {[%clk 0:00:17.3]}
48... Kxf6 {[%clk 0:01:52.1]} 49. Rc3 {[%clk 0:00:18.5]} 49... Rf3+ {[%clk
0:01:49]} 50. Rxf3+ {[%clk 0:00:19.3]} 50... exf3 {[%clk 0:01:50.9]} 51. Kg3
{[%clk 0:00:21.2]} 51... Kf5 {[%clk 0:01:51.7]} 52. Kxf3 {[%clk 0:00:23.1]}
52... g5 {[%clk 0:01:53.6]} 53. Kg3 {[%clk 0:00:23.6]} 53... h4+ {[%clk
0:01:54.8]} 54. Kf3 {[%clk 0:00:24.4]} 54... g4+ {[%clk 0:01:55.6]} 55. Ke3
{[%clk 0:00:25.7]} 55... h3 {[%clk 0:01:56.8]} 0-1